bitfinex-derivatives/quotes_SOLF0:USTF0_20250312
["timestamp","ask_amount","ask_price","bid_price","bid_amount"]
[1741793550925,33.70891619,124.14,124.06,256.42283367]
[1741793551124,77.08891619,124.14,124.06,43.42]
[1741793551426,2.1686,124.13,124.06,43.42]
[1741793551632,0.05344605,124.11,124.09,0.06010897]
[1741793551829,0.05344605,124.11,124.1,8.0602]
[1741793552329,43.4,124.17,124.14,8.0576]
[1741793552630,43.4,124.17,124.1,43.36]
[1741793552830,2.1686,124.19,124.1,43.36]
[1741793553024,33.70891619,124.18,124.1,43.36]
[1741793553631,0.0535669,124.15,124.13,0.05288567]
[1741793554132,8.0583,124.13,124.05,6.2424]
[1741793554537,8.0593,124.12,124.06,8.0624]
[1741793554731,2.1354,124.13,124.05,2.1251]
[1741793555034,8.0594,124.12,124.07,8.0618]
[1741793555229,0.05161318,124.1,124.08,0.05338707]
[1741793559337,0.05161318,124.1,124.09,8.0609]
[1741793559740,2.0564,124.14,124.08,0.05338707]
[1741793560640,42.76,124.13,124.08,0.05338707]
[1741793561042,0.05124188,124.12,124.08,0.05338707]
[1741793561541,0.05124188,124.12,124.08,8.11478707]
[1741793561737,0.05124188,124.12,124.08,0.05338707]
[1741793562139,0.05124188,124.12,124.11,8.0596]
[1741793564141,0.05124188,124.12,124.08,46.64028707]
[1741793564542,0.05124188,124.12,124.08,0.05338707]
[1741793565639,8.11044188,124.12,124.08,0.05338707]
[1741793565839,0.05124188,124.12,124.08,0.05338707]
[1741793566344,42.46,124.11,124.08,0.05338707]
[1741793566741,50.5201,124.11,124.08,0.05338707]
[1741793567043,42.46,124.11,124.08,0.05338707]
[1741793567243,50.5199,124.11,124.08,0.05338707]
[1741793567744,8.0603,124.1,124.08,0.05338707]
[1741793567945,42.46,124.11,124.08,0.05338707]
[1741793569341,0.05124188,124.12,124.08,0.05338707]
[1741793569843,0.05124188,124.12,124.08,33.76230326]
[1741793570242,0.05124188,124.12,124.11,8.0596]
[1741793570446,0.05124188,124.12,124.09,4.2021]
[1741793570843,0.05124188,124.12,124.08,8.11448707]
[1741793571041,0.05124188,124.12,124.08,0.05338707]
[1741793571641,8.11044188,124.12,124.08,0.05338707]
[1741793571843,0.05124188,124.12,124.08,0.05338707]
[1741793572042,8.0601,124.11,124.08,0.05338707]
[1741793572346,0.05124188,124.12,124.08,0.05338707]
[1741793573748,8.0606,124.1,124.08,0.05338707]
[1741793573940,0.05124188,124.12,124.08,0.05338707]
[1741793575045,0.05124188,124.12,124.08,8.11478707]
[1741793575246,0.05124188,124.12,124.08,0.05338707]
[1741793576843,2.03024188,124.12,124.08,0.05338707]
[1741793577145,33.70891619,124.11,124.08,0.05338707]
[1741793577545,8.0609,124.09,124.08,0.05338707]
[1741793577846,50.5209,124.09,124.08,0.05338707]
[1741793578942,42.46,124.09,124.08,0.05338707]
[1741793579247,8.0606,124.1,124.08,0.05338707]
[1741793580042,50.5199,124.11,124.08,0.05338707]
[1741793580249,42.46,124.11,124.08,0.05338707]
[1741793580749,50.5197,124.11,124.08,0.05338707]
[1741793580936,42.46,124.11,124.09,8.0608]
[1741793581138,42.46,124.11,124.08,0.05338707]
[1741793581139,0.05124188,124.12,124.08,0.05338707]
[1741793581446,0.05124188,124.12,124.09,8.0604]
[1741793581647,8.0601,124.11,124.08,0.05338707]
[1741793581844,0.05124188,124.12,124.08,0.05338707]
[1741793582043,0.05124188,124.12,124.09,8.0605]
[1741793582244,0.05124188,124.12,124.08,0.05338707]
[1741793582551,0.05124188,124.12,124.09,8.0606]
[1741793582749,0.05124188,124.12,124.08,0.05338707]
[1741793583253,0.05124188,124.12,124.11,8.0596]
[1741793583444,0.05124188,124.12,124.09,1.9819]
[1741793584247,0.29896,124.17,124.1,33.70891619]
[1741793584448,6.04446991,124.23,124.09,251.8219]
[1741793584449,16.42074071,124.23,124.15,33.70891619]
[1741793584847,16.42074071,124.23,124.16,2.1389]
[1741793585043,8.0526,124.22,124.16,2.1389]
[1741793585354,0.05744089,124.2,124.18,0.05957332]
[1741793585541,8.0535,124.21,124.18,0.05957332]
[1741793585746,76.16891619,124.25,124.18,0.05957332]
[1741793585747,0.05922603,124.2,124.18,0.05957332]
[1741793586045,76.16891619,124.25,124.18,0.05957332]
[1741793586247,50.5106,124.25,124.18,0.05957332]
[1741793586447,0.05158461,124.23,124.18,0.05957332]
[1741793588148,33.7605008,124.23,124.18,0.05957332]
[1741793588952,0.05158461,124.23,124.18,0.05957332]
[1741793589950,8.0541,124.2,124.18,0.05957332]
[1741793590250,42.44,124.21,124.18,0.05957332]
[1741793590451,8.11151738,124.2,124.18,0.05957332]
[1741793590654,0.05711738,124.2,124.18,0.05957332]
[1741793591643,8.0544,124.19,124.18,0.05957332]
[1741793591849,33.76603357,124.2,124.1,2.1527]
[1741793592050,2.0356,124.19,124.1,2.1527]
[1741793592254,33.70891619,124.18,124.1,2.1527]
[1741793592455,42.44,124.17,124.1,2.1527]
[1741793592755,8.0586,124.13,124.1,10.2128]
[1741793592951,8.0586,124.13,124.12,0.05832106]
[1741793593151,0.06125097,124.15,124.12,0.05832106]
[1741793593550,8.11845097,124.15,124.12,8.11712106]
[1741793593756,0.06125097,124.15,124.12,0.05832106]
[1741793594256,0.06125097,124.15,124.13,8.0583]
[1741793594757,8.11845097,124.15,124.12,0.05832106]
[1741793594955,0.06125097,124.15,124.12,0.05832106]
[1741793595256,8.0583,124.13,124.12,0.05832106]
[1741793595452,0.06125097,124.15,124.12,0.05832106]
[1741793595655,0.06125097,124.15,124.13,8.0582]
[1741793595954,0.06125097,124.15,124.12,0.05832106]
[1741793598356,8.0583,124.13,124.12,0.05832106]
[1741793599457,0.06125097,124.15,124.12,0.05832106]
[1741793600456,0.06125097,124.15,124.13,8.0579]
[1741793600858,0.06125097,124.15,124.12,0.05832106]
[1741793601157,0.06125097,124.15,124.13,8.0583]
[1741793601354,0.06125097,124.15,124.12,0.05832106]
[1741793602157,0.06125097,124.15,124.13,8.058]
[1741793602555,0.06125097,124.15,124.13,8.0583]
[1741793602861,0.06125097,124.15,124.12,0.05832106]
[1741793603157,0.06125097,124.15,124.12,8.11692106]
[1741793603364,0.06125097,124.15,124.12,0.05832106]
[1741793606051,8.0604,124.1,124.05,89.86792197]
[1741793606260,33.70891619,124.13,124.07,3.9507]
[1741793606561,76.14891619,124.16,124.07,3.9507]
[1741793606756,8.0579,124.14,124.07,3.9507]
[1741793606959,42.44,124.16,124.07,3.9507]
[1741793607155,42.44,124.16,124.07,12.0128]
[1741793607454,42.44,124.16,124.1,0.05599973]
[1741793607455,0.05481811,124.13,124.1,0.05599973]
[1741793608260,8.0596,124.11,124.1,0.05599973]
[1741793609361,42.44,124.12,124.1,0.05599973]
[1741793610758,33.70891619,124.11,124.04,2.1512]
[1741793610964,33.70891619,124.11,124.03,2.1394]
[1741793611563,8.0627,124.07,124.03,2.1394]
[1741793611961,35.73121619,124.11,124.03,2.1394]
[1741793612163,8.12404435,124.06,124.04,0.05852755]
[1741793612463,33.70891619,124.09,124.04,0.05852755]
[1741793612662,0.0508558,124.06,124.04,0.05852755]
[1741793614364,8.1139558,124.06,124.04,0.05852755]
[1741793614556,0.0508558,124.06,124.04,0.05852755]
[1741793616067,8.1140558,124.06,124.04,0.05852755]
[1741793616263,0.0508558,124.06,124.04,0.05852755]
[1741793616963,8.1142558,124.06,124.04,0.05852755]
[1741793617167,0.0508558,124.06,124.04,0.05852755]
[1741793617468,8.0635,124.05,124.04,0.05852755]
[1741793618763,8.1140558,124.06,124.04,0.05852755]
[1741793618964,0.0508558,124.06,124.04,0.05852755]
[1741793619571,8.0635,124.05,124.04,0.05852755]
[1741793619759,0.0508558,124.06,124.04,0.05852755]
[1741793620267,8.1136558,124.06,124.04,0.05852755]
[1741793620467,0.0508558,124.06,124.04,0.05852755]
[1741793621269,8.0635,124.05,124.04,0.05852755]
[1741793622174,8.1139558,124.06,124.04,0.05852755]
[1741793622371,0.0508558,124.06,124.04,0.05852755]
[1741793623673,8.0635,124.05,124.04,0.05852755]
[1741793624472,0.0508558,124.06,124.04,0.05852755]
[1741793626074,0.0508558,124.06,124.05,8.0635]
[1741793626274,42.46,124.08,124.04,0.05852755]
[1741793626474,76.16891619,124.11,124.04,0.05852755]
[1741793626678,33.70891619,124.11,124.04,0.05852755]
[1741793627175,42.46,124.1,124.04,0.05852755]
[1741793627370,8.1157196,124.09,124.05,8.0631]
[1741793627566,8.1157196,124.09,124.04,0.05852755]
[1741793627772,8.1157196,124.09,124.05,8.0632]
[1741793627973,8.1157196,124.09,124.04,0.05852755]
[1741793628169,0.0545196,124.09,124.04,0.05852755]
[1741793628374,0.0545196,124.09,124.05,8.0628]
[1741793628574,0.0545196,124.09,124.04,0.05852755]
[1741793629276,8.0615,124.08,124.04,0.05852755]
[1741793629773,0.0545196,124.09,124.04,0.05852755]
[1741793630575,0.0545196,124.09,124.04,33.76744374]
[1741793630777,360.36767783,124.18,124.08,33.70891619]
[1741793631074,8.0561,124.17,124.09,2.094]
[1741793631273,42.46,124.18,124.09,2.094]
[1741793631486,76.16891619,124.19,124.1,2.0932]
[1741793631973,0.05529003,124.16,124.13,0.05695328]
[1741793632277,8.0573,124.15,124.13,0.05695328]
[1741793632478,0.05529003,124.16,124.13,0.05695328]
[1741793632679,8.0571,124.15,124.13,0.05695328]
[1741793632879,0.05529003,124.16,124.13,0.05695328]
[1741793633773,8.11209003,124.16,124.13,0.05695328]
[1741793634573,0.05529003,124.16,124.13,0.05695328]
[1741793634769,8.11219003,124.16,124.13,0.05695328]
[1741793634969,0.05529003,124.16,124.13,0.05695328]
[1741793636574,8.0576,124.14,124.13,0.05695328]
[1741793637484,33.70891619,124.15,124.05,100.3262332]
[1741793637485,33.70891619,124.15,124.05,104.4243332]
[1741793637675,33.70891619,124.13,124.06,2.1307]
[1741793637874,8.0599,124.11,124.06,2.1307]
[1741793638073,76.14891619,124.13,124.09,8.0606]
[1741793638582,8.0596,124.11,124.1,0.05382322]
[1741793639484,0.05744768,124.12,124.1,0.05382322]
[1741793640885,8.11684768,124.12,124.1,0.05382322]
[1741793641787,8.0596,124.11,124.1,0.05382322]
[1741793642582,8.0629,124.06,124.03,33.70047074]
[1741793642784,76.14891619,124.11,124.03,33.70047074]
[1741793643088,8.0605,124.1,124.03,33.70047074]
[1741793643282,42.44,124.11,124.03,33.70047074]
[1741793643493,42.44,124.11,124.06,8.0624]
[1741793643790,0.0542118,124.08,124.06,0.06111262]
[1741793643982,42.44,124.14,124.08,8.061]
[1741793644177,8.0587,124.13,124.08,8.061]
[1741793644382,42.44,124.14,124.04,33.70891619]
[1741793644790,8.0586,124.13,124.06,33.70891619]
[1741793644992,42.44,124.14,124.06,33.70891619]
[1741793645180,0.06036919,124.11,124.09,8.0606]
[1741793645380,0.06036919,124.11,124.08,0.05746469]
[1741793645585,0.06036919,124.11,124.09,8.0607]
[1741793645786,0.06036919,124.11,124.08,0.05746469]
[1741793646290,0.06036919,124.11,124.09,8.0605]
[1741793646490,0.06036919,124.11,124.08,0.05746469]
[1741793646886,0.06036919,124.11,124.09,8.0607]
[1741793647189,0.06036919,124.11,124.08,0.05746469]
[1741793647387,0.06036919,124.11,124.1,8.0602]
[1741793647690,0.06036919,124.11,124.08,0.05746469]
[1741793648590,0.06036919,124.11,124.1,8.0602]
[1741793648891,42.44,124.21,124.1,33.70891619]
[1741793649084,42.44,124.21,124.12,33.70891619]
[1741793649290,284.22,124.22,124.12,76.14891619]
[1741793649790,4.1821,124.23,124.12,76.14891619]
[1741793649985,0.05581058,124.18,124.16,0.06093975]
[1741793650185,33.70891619,124.25,124.16,0.06093975]
[1741793650387,4.0289,124.27,124.18,33.70891619]
[1741793650589,16.51053042,124.29,124.19,0.05193834]
[1741793650790,8.0493,124.27,124.21,8.0529]
[1741793651087,16.51053042,124.29,124.18,33.70891619]
[1741793651294,42.42,124.28,124.18,33.70891619]
[1741793651888,0.05262583,124.24,124.22,0.06022613]
[1741793652088,8.10382583,124.24,124.22,0.06022613]
[1741793652291,0.05262583,124.24,124.22,0.06022613]
[1741793652593,8.0518,124.23,124.22,0.06022613]
[1741793652988,8.0518,124.23,124.22,0.00372116]
[1741793653392,8.0541,124.2,124.16,2.04]
[1741793654191,44.4211,124.24,124.16,2.04]
[1741793654490,44.4211,124.24,124.19,0.05835827]
[1741793654491,0.05305354,124.21,124.19,0.05835827]
[1741793654992,8.0543,124.2,124.19,0.05835827]
[1741793655585,50.4743,124.2,124.19,0.05835827]
[1741793655894,50.4743,124.2,124.13,57.8862332]
[1741793655895,42.42,124.2,124.13,57.8862332]
[1741793656191,42.42,124.2,124.12,243.8254]
[1741793656192,8.0572,124.15,124.12,243.8254]
[1741793656595,42.42,124.2,124.12,243.8254]
[1741793656890,0.05907954,124.15,124.12,243.8254]
[1741793657083,0.05907954,124.15,124.12,2.0454]
[1741793657288,0.05907954,124.15,124.12,0.06168538]
[1741793658489,0.05907954,124.15,124.07,33.70047074]
[1741793658689,33.70891619,124.13,124.06,2.1575]
[1741793658894,42.4,124.12,124.06,2.1575]
[1741793659693,0.05756214,124.1,124.08,0.0616543]
[1741793660293,8.0609,124.09,124.08,0.0616543]
[1741793661094,8.11826214,124.1,124.08,0.0616543]
[1741793662097,8.0609,124.09,124.08,0.0616543]
[1741793662295,0.05756214,124.1,124.08,0.0616543]
[1741793662704,8.11836214,124.1,124.08,0.0616543]
[1741793663601,0.05756214,124.1,124.08,0.0616543]
[1741793664301,8.11806214,124.1,124.08,0.0616543]
[1741793664703,0.05756214,124.1,124.08,0.0616543]
[1741793665001,8.0609,124.09,124.08,0.0616543]
[1741793665201,0.05756214,124.1,124.01,213.09632348]
[1741793665504,8.0626,124.07,124.02,8.0651]
[1741793666408,0.05865607,124.06,124.03,0.06190668]
[1741793667105,0.05865607,124.06,124.04,8.064]
[1741793667306,0.05865607,124.06,124.03,0.06190668]
[1741793668305,0.05865607,124.06,124.03,8.12620668]
[1741793668601,0.05865607,124.06,124.03,0.06190668]
[1741793668802,0.05865607,124.06,124.04,8.0641]
[1741793669204,42.4,124.11,124.03,0.06190668]
[1741793669404,42.4,124.11,124.02,76.10891619]
[1741793669912,8.0616,124.08,124.04,8.0638]
[1741793670207,42.4,124.11,124.04,8.0638]
[1741793670403,0.05996075,124.07,124.05,0.05570698]
[1741793670604,0.05996075,124.07,124.05,8.11900698]
[1741793670807,0.05996075,124.07,124.05,0.05570698]
[1741793672407,0.05996075,124.07,124.06,8.0628]
[1741793672804,35.52417431,124.15,124.05,0.05570698]
[1741793673009,0.4124,124.15,124.06,33.70891619]
[1741793673204,44.5378,124.14,124.06,33.70891619]
[1741793673406,8.059,124.12,124.06,33.70891619]
[1741793674100,0.06090058,124.1,124.08,0.06067376]
[1741793674707,42.4,124.15,124.08,0.06067376]
[1741793674911,50.4573,124.15,124.08,0.06067376]
[1741793675300,42.4,124.15,124.08,0.06067376]
[1741793675705,42.4,124.15,124.1,8.0599]
[1741793675919,0.05140214,124.13,124.07,4.1359]
[1741793676211,0.05140214,124.13,124.12,8.0589]
[1741793676510,0.05140214,124.13,124.11,0.05793393]
[1741793677410,0.05140214,124.13,124.12,8.0589]
[1741793677610,0.05140214,124.13,124.11,0.05793393]
[1741793678910,0.05140214,124.13,124.11,8.11723393]
[1741793679409,0.05140214,124.13,124.11,0.05793393]
[1741793679814,0.05140214,124.13,124.12,8.0589]
[1741793681316,8.056,124.17,124.14,8.0576]
[1741793681614,8.056,124.17,124.1,76.10891619]
[1741793682011,8.056,124.17,124.13,8.0579]
[1741793682210,2.1799,124.18,124.1,76.10891619]
[1741793682411,0.06034781,124.16,124.14,0.05096795]
[1741793683213,8.057,124.15,124.09,2.0653]
[1741793683420,44.5599,124.18,124.09,2.0653]
[1741793683815,8.058,124.14,124.09,2.0653]
[1741793684015,44.5599,124.18,124.09,2.0653]
[1741793684416,0.05392366,124.15,124.12,0.06065075]
[1741793686014,8.0583,124.13,124.12,0.06065075]
[1741793689322,8.0583,124.13,124.12,5.075e-05]
[1741793689520,41.76721619,124.13,124.12,5.075e-05]
[1741793689717,8.0583,124.13,124.12,5.075e-05]
[1741793690217,41.76721619,124.13,124.12,5.075e-05]
[1741793692418,29.11192079,124.13,124.03,4.2797]
[1741793692623,21.05192079,124.1,124.03,4.2797]
[1741793692826,21.05192079,124.08,124.04,8.064]
[1741793693020,42.36,124.09,124.04,8.064]
[1741793693418,8.0626,124.07,124.04,8.064]
[1741793693724,0.05464129,124.08,124.05,0.06187705]
[1741793693919,8.0629,124.06,124.05,0.06187705]
[1741793694317,10.07898804,124.06,124.05,0.06187705]
[1741793694724,35.73112083,124.06,124.0,33.70047074]
[1741793694922,8.0659,124.02,124.0,33.70047074]
[1741793695324,8.0661,124.01,124.0,33.70047074]
[1741793695816,8.0661,124.01,123.98,14.3695]
[1741793696021,8.0661,124.01,123.99,0.06189318]
[1741793696523,0.05498548,124.02,123.99,0.06189318]
[1741793696827,2.0167415,124.01,123.99,0.06189318]
[1741793697427,0.05498548,124.02,123.99,0.06189318]
[1741793697623,2.01683661,124.01,123.99,8.12929318]
[1741793697819,2.01683661,124.01,123.99,0.06189318]
[1741793698226,0.05498548,124.02,123.99,0.06189318]
[1741793699026,2.01667212,124.01,123.99,0.06189318]
[1741793699327,8.0664,124.01,123.99,0.06189318]
[1741793699521,0.05498548,124.02,123.99,0.06189318]
[1741793699723,2.01678506,124.01,123.99,0.06189318]
[1741793700628,8.12068548,124.02,123.99,0.06189318]
[1741793700629,44.37694997,124.0,123.99,0.06189318]
[1741793701730,52.44364997,124.0,123.99,0.06189318]
[1741793702227,44.37694997,124.0,123.94,8.0703]
[1741793702430,2.01694997,123.99,123.91,125.63469271]
[1741793702730,76.07492728,124.0,123.91,125.63469271]
[1741793702731,2.01694997,123.98,123.91,123.56839271]
[1741793702925,2.01694997,123.97,123.91,2.0928]
[1741793703121,76.07492728,124.0,123.93,8.0708]
[1741793703320,2.01745196,123.99,123.93,8.12372]
[1741793703526,2.07422584,123.98,123.93,8.12372]
[1741793703726,8.0697,123.96,123.93,8.12372]
[1741793704531,33.77170116,123.98,123.93,0.05292]
[1741793704729,2.0174447,123.97,123.93,0.05292]
[1741793704929,8.0706,123.94,123.93,0.05292]
[1741793706329,8.12975829,123.95,123.93,0.05292]
[1741793706525,0.05945829,123.95,123.93,0.05292]
[1741793707132,8.0706,123.94,123.93,0.05292]
[1741793708734,41.78552728,123.94,123.93,0.05292]
[1741793708934,8.0706,123.94,123.93,0.05292]
[1741793709735,41.78552728,123.94,123.93,2e-05]
[1741793709935,8.0735,123.9,123.87,4.0989]
[1741793710233,33.71492728,123.94,123.88,8.0742]
[1741793710435,8.0729,123.91,123.88,8.0742]
[1741793711038,0.05733824,123.91,123.9,8.073]
[1741793711233,0.05733824,123.91,123.88,0.0601868]
[1741793711433,8.13023824,123.91,123.88,0.0601868]
[1741793711634,0.05733824,123.91,123.88,0.0601868]
[1741793712436,0.05733824,123.91,123.89,8.0739]
[1741793712838,0.05733824,123.91,123.88,0.0601868]
[1741793713037,0.05733824,123.91,123.89,8.0738]
[1741793713231,0.05733824,123.91,123.88,0.0601868]
[1741793715133,8.13023824,123.91,123.88,0.0601868]
[1741793715730,0.05733824,123.91,123.88,0.0601868]
[1741793716340,8.13023824,123.91,123.88,0.0601868]
[1741793717036,0.05733824,123.91,123.88,0.0601868]
[1741793717843,8.13023824,123.91,123.88,0.0601868]
[1741793718344,0.05733824,123.91,123.89,8.0736]
[1741793718532,21.1156766,123.98,123.89,21.1156766]
[1741793718732,65.5048766,123.99,123.91,29.1879766]
[1741793718948,21.1156766,123.97,123.91,8.0723]
[1741793719439,21.1156766,123.97,123.9,2.1327]
[1741793719641,21.1156766,123.95,123.9,2.1327]
[1741793719836,8.071,123.94,123.92,0.05374573]
[1741793720043,21.16640983,123.95,123.92,0.05374573]
[1741793720234,0.05073323,123.95,123.92,0.05374573]
[1741793721341,0.05073323,123.95,123.92,8.12534573]
[1741793721542,8.12083323,123.95,123.92,0.05374573]
[1741793721742,0.05073323,123.95,123.92,0.05374573]
[1741793721942,8.12123323,123.95,123.92,0.05374573]
[1741793722141,0.05073323,123.95,123.92,0.05374573]
[1741793722839,0.05073323,123.95,123.93,8.0707]
[1741793723343,0.05073323,123.95,123.92,0.05374573]
[1741793724046,21.16640983,123.95,123.92,0.05374573]
[1741793724246,0.05073323,123.95,123.92,0.05374573]
[1741793725844,21.1156766,124.01,123.92,21.16942233]
[1741793726049,23.2700766,124.05,123.96,21.1156766]
[1741793726346,63.4556766,124.05,123.97,4.0026]
[1741793726851,8.0652,124.03,123.98,8.0675]
[1741793727047,0.05632719,124.02,124.0,0.06119586]
[1741793727554,21.1156766,124.07,124.0,0.06119586]
[1741793728053,21.1156766,124.05,124.0,0.06119586]
[1741793728347,8.0654,124.02,124.0,0.06119586]
[1741793728550,21.1156766,124.03,124.0,0.06119586]
[1741793728757,0.05381988,124.02,124.0,0.06119586]
[1741793728958,8.0661,124.01,124.0,0.06119586]
[1741793729953,0.05381988,124.02,124.0,0.06119586]
[1741793730955,8.11941988,124.02,124.0,0.06119586]
[1741793731455,0.05381988,124.02,124.0,0.06119586]
[1741793731960,8.0661,124.01,124.0,0.06119586]
[1741793732362,0.05381988,124.02,124.0,0.06119586]
[1741793732561,8.11961988,124.02,124.0,0.06119586]
[1741793732761,0.05381988,124.02,124.0,0.06119586]
[1741793733062,8.11951988,124.02,124.0,0.06119586]
[1741793733263,0.05381988,124.02,124.0,0.06119586]
[1741793733459,2.07062325,124.02,124.0,0.06119586]
[1741793733660,8.0661,124.01,124.0,0.06119586]
[1741793733861,0.05381988,124.02,124.0,0.06119586]
[1741793734163,8.0661,124.01,124.0,0.06119586]
[1741793734364,0.05381988,124.02,124.0,0.06119586]
[1741793734862,2.07070223,124.02,124.0,0.06119586]
[1741793735063,0.05381988,124.02,124.0,0.06119586]
[1741793735258,8.0661,124.01,124.0,0.06119586]
[1741793735458,10.08294246,124.01,124.0,0.06119586]
[1741793736355,8.068,123.98,123.97,2.1308]
[1741793736565,21.1156766,124.0,123.97,2.1308]
[1741793736871,10.08502508,123.99,123.97,2.1308]
[1741793737160,21.1156766,124.03,123.97,2.1308]
[1741793737363,10.08265796,124.02,123.98,8.0677]
[1741793737566,2.06892523,124.01,123.99,0.05104355]
[1741793737761,2.01687947,124.0,123.99,0.05104355]
[1741793737967,0.05206727,124.01,123.99,0.05104355]
[1741793738565,8.11856727,124.01,123.99,0.05104355]
[1741793739667,8.0667,124.0,123.99,0.05104355]
[1741793740063,0.05206727,124.01,123.99,0.05104355]
[1741793740870,8.0667,124.0,123.99,0.05104355]
[1741793741369,8.11836727,124.01,123.99,0.05104355]
[1741793742170,0.05206727,124.01,123.99,0.05104355]
[1741793742369,0.05206727,124.01,123.99,8.11844355]
[1741793742565,0.05206727,124.01,123.99,0.05104355]
[1741793742771,8.0638,124.05,123.99,0.05104355]
[1741793742968,2.01638003,124.04,124.02,8.0653]
[1741793743269,21.1156766,124.05,124.0,2.0579]
[1741793743470,21.1156766,124.07,124.0,2.0579]
[1741793743471,21.1156766,124.03,124.0,2.0579]
[1741793743670,2.01636175,124.02,124.0,2.0579]
[1741793743873,0.05141098,124.02,124.0,2.11119228]
[1741793744466,10.08285494,124.01,124.0,0.05329228]
[1741793745266,2.01675494,124.01,124.0,0.05329228]
[1741793745569,8.11711098,124.02,124.0,0.05329228]
[1741793746270,8.0661,124.01,124.0,0.05329228]
[1741793746470,0.05141098,124.02,124.0,0.05329228]
[1741793747068,2.06807374,124.02,124.0,0.05329228]
[1741793747269,8.11711098,124.02,124.0,0.05329228]
[1741793747664,0.05141098,124.02,124.0,0.05329228]
[1741793747870,0.05141098,124.02,124.01,8.0661]
[1741793748070,2.0164232,124.06,124.0,0.05329228]
[1741793748265,23.1320998,124.05,124.0,0.05329228]
[1741793748470,2.0164232,124.04,124.0,0.05329228]
[1741793748675,21.1156766,124.05,124.0,0.05329228]
[1741793748869,8.0657,124.02,124.0,0.05329228]
[1741793749369,8.12435183,124.02,124.0,0.05329228]
[1741793751077,0.05865183,124.02,124.0,0.05329228]
[1741793751768,8.12425183,124.02,124.0,0.05329228]
[1741793752073,0.05865183,124.02,124.0,8.11969228]
[1741793752376,21.1156766,124.05,124.0,0.05329228]
[1741793752578,21.1156766,124.07,124.02,8.0654]
[1741793752771,8.0635,124.05,123.97,23.2464766]
[1741793752973,21.1156766,124.07,123.97,23.2464766]
[1741793753174,2.01631144,124.06,123.97,23.2464766]
[1741793753375,21.1156766,124.04,123.97,2.1308]
[1741793753577,0.05298072,124.03,124.0,0.05873758]
[1741793753775,8.11798072,124.03,124.0,0.05873758]
[1741793753976,0.05298072,124.03,124.0,0.05873758]
[1741793754176,0.05298072,124.03,124.01,8.0657]
[1741793754376,0.05298072,124.03,124.0,0.05873758]
[1741793754775,0.05298072,124.03,124.01,8.0657]
[1741793755081,0.05298072,124.03,124.0,0.05873758]
[1741793755479,0.05298072,124.03,124.02,8.0654]
[1741793755979,0.05298072,124.03,124.0,8.12503758]
[1741793756881,8.11818072,124.03,124.0,8.12503758]
[1741793757174,0.05298072,124.03,124.01,8.066]
[1741793757379,0.05298072,124.03,124.0,0.05873758]
[1741793758682,0.05298072,124.03,124.01,8.0658]
[1741793759076,0.05298072,124.03,124.02,8.0654]
[1741793760479,21.1156766,124.1,124.05,8.0635]
[1741793760684,21.1156766,124.08,124.02,2.0941]
[1741793760877,8.0638,124.05,124.02,2.0941]
[1741793761275,8.0651,124.03,123.98,122.58149526]
[1741793761473,21.1156766,124.04,123.99,8.067]
[1741793761780,0.05191751,124.02,123.99,0.05898924]
[1741793761985,0.05191751,124.02,123.99,8.12598924]
[1741793762185,0.05191751,124.02,123.99,0.05898924]
[1741793762385,8.11761751,124.02,123.99,0.05898924]
[1741793762575,0.05191751,124.02,124.0,8.0666]
[1741793762779,0.05191751,124.02,123.99,0.05898924]
[1741793763086,0.05191751,124.02,124.0,8.0667]
[1741793763888,0.05191751,124.02,123.99,8.12608924]
[1741793764076,0.05191751,124.02,123.99,0.05898924]
[1741793764283,21.16759411,124.02,123.99,0.05898924]
[1741793764986,8.0665,124.01,123.99,0.05898924]
[1741793765784,0.05191751,124.02,123.99,0.05898924]
[1741793766383,8.11761751,124.02,123.99,8.12598924]
[1741793766888,0.05191751,124.02,123.99,8.12598924]
[1741793767085,0.05191751,124.02,124.0,8.0662]
[1741793767285,0.05191751,124.02,123.99,0.05898924]
[1741793767690,21.16759411,124.02,123.99,0.05898924]
[1741793767893,8.0667,124.0,123.99,0.05898924]
[1741793768088,21.16759411,124.02,123.99,0.05898924]
[1741793768485,8.0667,124.0,123.99,0.05898924]
[1741793769699,21.16759411,124.02,123.99,0.05898924]
[1741793769890,0.05191751,124.02,123.99,0.05898924]
[1741793770992,8.11761751,124.02,123.99,8.12608924]
[1741793771296,8.11761751,124.02,123.99,0.05898924]
[1741793771799,8.0664,124.01,123.99,0.05898924]
[1741793772697,29.1823766,124.0,123.99,0.05898924]
[1741793773090,8.0667,124.0,123.99,0.05898924]
[1741793773999,21.16759411,124.02,123.99,0.05898924]